[Event "Titled Tuesday Blitz August 09 Early 2022"]
[White "Miszler, Levente"]
[Black "Zou, Chen"]
[WhiteFideId "763276"]
[BlackFideId "8610959"]
[WhiteElo "1966"]
[BlackElo "2276"]
[Result "0-1"]
[Round "01"]
[TimeControl "180+1"]
[Date "2022.08.09"]
[WhiteClock "0:00:07"]
[BlackClock "0:00:12"]

1. Nf3 {[%clk 0:03:00]}  Nf6 {[%clk 0:02:58]} 2. c4 {[%clk 0:02:58]}  e6 {[%clk 0:02:53]} 3. g3 {[%clk 0:02:52]}  d5 {[%clk 0:02:53]} 4. Bg2 {[%clk 0:02:49]}  Be7 {[%clk 0:02:53]} 5. O-O {[%clk 0:02:48]}  O-O {[%clk 0:02:53]} 6. b3 {[%clk 0:02:48]}  c5 {[%clk 0:02:49]} 7. Bb2 {[%clk 0:02:40]}  Nc6 {[%clk 0:02:46]} 8. e3 {[%clk 0:02:37]}  b6 {[%clk 0:02:45]} 9. d4 {[%clk 0:02:33]}  Bb7 {[%clk 0:02:30]} 10. Nbd2 {[%clk 0:02:24]}  Rc8 {[%clk 0:02:19]} 11. Qe2 {[%clk 0:02:21]}  Qc7 {[%clk 0:01:56]} 12. Rfd1 {[%clk 0:02:16]}  Rfd8 {[%clk 0:01:51]} 13. Rac1 {[%clk 0:02:15]}  cxd4 {[%clk 0:01:30]} 14. exd4 {[%clk 0:02:00]}  dxc4 {[%clk 0:01:27]} 15. Nxc4 {[%clk 0:02:01]}  Qb8 {[%clk 0:01:26]} 16. Nce5 {[%clk 0:01:54]}  Nxe5 {[%clk 0:01:09]} 17. dxe5 {[%clk 0:01:55]}  Nd5 {[%clk 0:01:04]} 18. Nd4 {[%clk 0:01:37]}  Rxc1 {[%clk 0:00:51]} 19. Rxc1 {[%clk 0:01:38]}  Rc8 {[%clk 0:00:52]} 20. Rxc8+ {[%clk 0:01:24]}  Qxc8 {[%clk 0:00:53]} 21. Nb5 {[%clk 0:01:24]}  Ba6 {[%clk 0:00:44]} 22. Nxa7 {[%clk 0:01:00]}  Qb7 {[%clk 0:00:38]} 23. Nb5 {[%clk 0:00:59]}  h6 {[%clk 0:00:36]} 24. a4 {[%clk 0:00:58]}  Qc8 {[%clk 0:00:35]} 25. Qc4 {[%clk 0:00:54]}  Qd7 {[%clk 0:00:31]} 26. Bd4 {[%clk 0:00:46]}  Bb7 {[%clk 0:00:28]} 27. Bxd5 {[%clk 0:00:39]}  Bxd5 {[%clk 0:00:24]} 28. Qc7 {[%clk 0:00:39]}  Qe8 {[%clk 0:00:24]} 29. Qxb6 {[%clk 0:00:33]}  Bxb3 {[%clk 0:00:23]} 30. Nd6 {[%clk 0:00:32]}  Qxa4 {[%clk 0:00:21]} 31. Qc7 {[%clk 0:00:18]}  Bd5 {[%clk 0:00:15]} 32. Qc8+ {[%clk 0:00:08]}  Kh7 {[%clk 0:00:13]} 33. Qc1 {[%clk 0:00:09]}  Qxd4 {[%clk 0:00:13]} 34. Nxf7 {[%clk 0:00:07]}  Qe4 {[%clk 0:00:12]} 0-1


[Site "https://www.chess.com"]

[Event "Titled Tuesday Blitz August 09 Early 2022"]
[White "Mitrabha, Guha"]
[Black "Myshakov, Fyodor"]
[WhiteFideId "5057000"]
[BlackFideId "14111284"]
[WhiteElo "2499"]
[BlackElo "2310"]
[Result "1-0"]
[Round "01"]
[TimeControl "180+1"]
[Date "2022.08.09"]
[WhiteClock "0:00:22"]
[BlackClock "0:00:28"]

1. Nf3 {[%clk 0:02:35]}  d5 {[%clk 0:02:59]} 2. d4 {[%clk 0:02:35]}  Nf6 {[%clk 0:02:59]} 3. Bf4 {[%clk 0:02:35]}  Bf5 {[%clk 0:02:58]} 4. c4 {[%clk 0:02:34]}  e6 {[%clk 0:02:58]} 5. Nc3 {[%clk 0:02:35]}  Be7 {[%clk 0:02:58]} 6. e3 {[%clk 0:02:35]}  O-O {[%clk 0:02:58]} 7. Qb3 {[%clk 0:02:36]}  b6 {[%clk 0:02:58]} 8. cxd5 {[%clk 0:02:34]}  Nxd5 {[%clk 0:02:57]} 9. Nxd5 {[%clk 0:02:34]}  exd5 {[%clk 0:02:57]} 10. Be2 {[%clk 0:02:33]}  c5 {[%clk 0:02:53]} 11. dxc5 {[%clk 0:02:31]}  bxc5 {[%clk 0:02:54]} 12. O-O {[%clk 0:02:31]}  Nc6 {[%clk 0:02:53]} 13. Rfd1 {[%clk 0:02:31]}  c4 {[%clk 0:02:46]} 14. Qb5 {[%clk 0:02:29]}  Nb4 {[%clk 0:02:42]} 15. a3 {[%clk 0:02:24]}  a6 {[%clk 0:02:41]} 16. Qb7 {[%clk 0:02:24]}  Nc2 {[%clk 0:02:38]} 17. Rxd5 {[%clk 0:02:21]}  Nxa1 {[%clk 0:02:36]} 18. Rxd8 {[%clk 0:02:20]}  Raxd8 {[%clk 0:02:37]} 19. Qxe7 {[%clk 0:02:20]}  Bd3 {[%clk 0:02:33]} 20. Bc7 {[%clk 0:02:10]}  Rde8 {[%clk 0:02:28]} 21. Qc5 {[%clk 0:02:05]}  Bxe2 {[%clk 0:02:27]} 22. Nd4 {[%clk 0:01:37]}  Nb3 {[%clk 0:02:20]} 23. Nxb3 {[%clk 0:01:26]}  cxb3 {[%clk 0:02:21]} 24. Qa5 {[%clk 0:01:20]}  Rc8 {[%clk 0:02:19]} 25. f3 {[%clk 0:01:19]}  Rfe8 {[%clk 0:02:18]} 26. Kf2 {[%clk 0:01:17]}  Bb5 {[%clk 0:02:00]} 27. a4 {[%clk 0:01:07]}  Bd3 {[%clk 0:01:58]} 28. g4 {[%clk 0:01:05]}  h6 {[%clk 0:01:54]} 29. h4 {[%clk 0:01:04]}  Re7 {[%clk 0:01:53]} 30. Be5 {[%clk 0:01:04]}  Bc4 {[%clk 0:01:40]} 31. Bd4 {[%clk 0:00:59]}  f6 {[%clk 0:01:38]} 32. g5 {[%clk 0:00:58]}  hxg5 {[%clk 0:01:37]} 33. hxg5 {[%clk 0:00:59]}  Re6 {[%clk 0:01:35]} 34. g6 {[%clk 0:00:59]}  Rec6 {[%clk 0:01:27]} 35. Qh5 {[%clk 0:00:58]}  Kf8 {[%clk 0:01:27]} 36. Bc3 {[%clk 0:00:57]}  Rb8 {[%clk 0:01:20]} 37. Qh2 {[%clk 0:00:55]}  Rb7 {[%clk 0:01:14]} 38. Qf4 {[%clk 0:00:50]}  Be6 {[%clk 0:01:09]} 39. Qe4 {[%clk 0:00:46]}  Rbc7 {[%clk 0:00:51]} 40. Bb4+ {[%clk 0:00:46]}  Ke8 {[%clk 0:00:51]} 41. Kg3 {[%clk 0:00:46]}  Kd7 {[%clk 0:00:51]} 42. Ba5 {[%clk 0:00:42]}  Rc8 {[%clk 0:00:48]} 43. Qd4+ {[%clk 0:00:42]}  Ke7 {[%clk 0:00:48]} 44. Bb4+ {[%clk 0:00:42]}  Ke8 {[%clk 0:00:49]} 45. a5 {[%clk 0:00:35]}  R8c7 {[%clk 0:00:42]} 46. Qh4 {[%clk 0:00:32]}  Rc4 {[%clk 0:00:39]} 47. Qh8+ {[%clk 0:00:32]}  Kd7 {[%clk 0:00:39]} 48. Qxg7+ {[%clk 0:00:32]}  Kc8 {[%clk 0:00:39]} 49. Qxf6 {[%clk 0:00:33]}  R7c6 {[%clk 0:00:39]} 50. g7 {[%clk 0:00:26]}  Rxb4 {[%clk 0:00:37]} 51. Qf8+ {[%clk 0:00:26]}  Kd7 {[%clk 0:00:36]} 52. Qxb4 {[%clk 0:00:27]}  Rc8 {[%clk 0:00:36]} 53. Qb7+ {[%clk 0:00:25]}  Rc7 {[%clk 0:00:36]} 54. Qxa6 {[%clk 0:00:26]}  Bf7 {[%clk 0:00:35]} 55. Qf6 {[%clk 0:00:25]}  Ke8 {[%clk 0:00:35]} 56. Qe5+ {[%clk 0:00:23]}  Re7 {[%clk 0:00:35]} 57. Qb8+ {[%clk 0:00:23]}  Kd7 {[%clk 0:00:35]} 58. g8=Q {[%clk 0:00:23]}  Bxg8 {[%clk 0:00:34]} 59. Qxg8 {[%clk 0:00:24]}  Rxe3 {[%clk 0:00:35]} 60. Qd5+ {[%clk 0:00:24]}  Ke8 {[%clk 0:00:33]} 61. Qb5+ {[%clk 0:00:24]}  Kf7 {[%clk 0:00:32]} 62. Qb7+ {[%clk 0:00:24]}  Ke8 {[%clk 0:00:31]} 63. Qb8+ {[%clk 0:00:24]}  Kf7 {[%clk 0:00:31]} 64. Qa7+ {[%clk 0:00:24]}  Kg6 {[%clk 0:00:29]} 65. Qxe3 {[%clk 0:00:24]}  Kh5 {[%clk 0:00:29]} 66. a6 {[%clk 0:00:22]}  Kg6 {[%clk 0:00:28]} 67. a7 {[%clk 0:00:23]}  Kf5 {[%clk 0:00:29]} 68. a8=Q {[%clk 0:00:23]}  Kf6 {[%clk 0:00:28]} 69. Qf8+ {[%clk 0:00:22]} 1-0


[Site "https://www.chess.com"]

[Event "Titled Tuesday Blitz August 09 Early 2022"]
[White "Molina, Roberto Junio Brito"]
[Black "Dushyant Sharma"]
[WhiteFideId "2109450"]
[BlackFideId "25065130"]
[WhiteElo "2403"]
[BlackElo "2133"]
[Result "1-0"]
[Round "01"]
[TimeControl "180+1"]
[Date "2022.08.09"]
[WhiteClock "0:00:03"]
[BlackClock "0:00:06"]

1. d4 {[%clk 0:02:45]}  d5 {[%clk 0:02:59]} 2. Nf3 {[%clk 0:02:43]}  e6 {[%clk 0:02:59]} 3. e3 {[%clk 0:02:43]}  f5 {[%clk 0:02:59]} 4. g3 {[%clk 0:02:42]}  Nf6 {[%clk 0:02:59]} 5. Bg2 {[%clk 0:02:42]}  Bd6 {[%clk 0:02:59]} 6. O-O {[%clk 0:02:42]}  O-O {[%clk 0:03:00]} 7. b3 {[%clk 0:02:42]}  c6 {[%clk 0:02:59]} 8. c4 {[%clk 0:02:42]}  Nbd7 {[%clk 0:02:59]} 9. Ba3 {[%clk 0:02:41]}  Bxa3 {[%clk 0:02:52]} 10. Nxa3 {[%clk 0:02:42]}  Qe7 {[%clk 0:02:53]} 11. Qc1 {[%clk 0:02:37]}  b6 {[%clk 0:02:38]} 12. Qb2 {[%clk 0:02:36]}  Bb7 {[%clk 0:02:36]} 13. Rac1 {[%clk 0:02:34]}  Ne4 {[%clk 0:02:31]} 14. Rfd1 {[%clk 0:02:33]}  Rac8 {[%clk 0:02:27]} 15. b4 {[%clk 0:02:30]}  Kh8 {[%clk 0:02:20]} 16. Nb1 {[%clk 0:02:24]}  Ba6 {[%clk 0:02:06]} 17. b5 {[%clk 0:02:13]}  cxb5 {[%clk 0:01:57]} 18. cxb5 {[%clk 0:02:14]}  Bb7 {[%clk 0:01:57]} 19. a4 {[%clk 0:02:10]}  a5 {[%clk 0:01:51]} 20. bxa6 {[%clk 0:01:50]}  Bxa6 {[%clk 0:01:50]} 21. Nbd2 {[%clk 0:01:39]}  Be2 {[%clk 0:01:44]} 22. Re1 {[%clk 0:01:38]}  Bd3 {[%clk 0:01:44]} 23. Rxc8 {[%clk 0:01:21]}  Rxc8 {[%clk 0:01:25]} 24. Rc1 {[%clk 0:01:22]}  Qd8 {[%clk 0:01:11]} 25. Nxe4 {[%clk 0:01:17]}  fxe4 {[%clk 0:01:00]} 26. Ng5 {[%clk 0:00:55]}  Rxc1+ {[%clk 0:00:20]} 27. Qxc1 {[%clk 0:00:56]}  Qe8 {[%clk 0:00:20]} 28. Qc6 {[%clk 0:00:20]}  Nf6 {[%clk 0:00:19]} 29. Qxb6 {[%clk 0:00:11]}  h6 {[%clk 0:00:17]} 30. Nxe6 {[%clk 0:00:09]}  Qxa4 {[%clk 0:00:17]} 31. Qd8+ {[%clk 0:00:04]}  Kh7 {[%clk 0:00:17]} 32. Nf8+ {[%clk 0:00:05]}  Kg8 {[%clk 0:00:17]} 33. Ng6+ {[%clk 0:00:04]}  Kh7 {[%clk 0:00:14]} 34. Nf8+ {[%clk 0:00:05]}  Kg8 {[%clk 0:00:15]} 35. h3 {[%clk 0:00:05]}  Qd1+ {[%clk 0:00:11]} 36. Kh2 {[%clk 0:00:06]}  Qe2 {[%clk 0:00:12]} 37. Ng6+ {[%clk 0:00:05]}  Kh7 {[%clk 0:00:13]} 38. Nf8+ {[%clk 0:00:04]}  Kg8 {[%clk 0:00:13]} 39. Ne6+ {[%clk 0:00:03]}  Kh7 {[%clk 0:00:13]} 40. Qe7 {[%clk 0:00:03]}  Nh5 {[%clk 0:00:10]} 41. Qf7 {[%clk 0:00:03]}  Bb5 {[%clk 0:00:06]} 42. g4 {[%clk 0:00:03]}  Be8 {[%clk 0:00:05]} 43. Qxe8 {[%clk 0:00:01]}  Qxf2 {[%clk 0:00:05]} 44. Qxh5 {[%clk 0:00:01]}  Qxe3 {[%clk 0:00:06]} 45. Qf5+ {[%clk 0:00:01]}  g6 {[%clk 0:00:06]} 46. Qf7+ {[%clk 0:00:02]}  Kh8 {[%clk 0:00:06]} 47. Qg7# {[%clk 0:00:03]} 1-0


[Site "https://www.chess.com"]

[Event "Titled Tuesday Blitz August 09 Early 2022"]
[White "Namitbir Singh Walia"]
[Black "Salem, A.R. Saleh"]
[WhiteFideId "35071068"]
[BlackFideId "9301348"]
[WhiteElo "1664"]
[BlackElo "2674"]
[Result "0-1"]
[Round "01"]
[TimeControl "180+1"]
[Date "2022.08.09"]
[WhiteClock "0:00:09"]
[BlackClock "0:01:38"]

1. d4 {[%clk 0:03:00]}  d5 {[%clk 0:02:59]} 2. c4 {[%clk 0:03:00]}  e6 {[%clk 0:02:59]} 3. Nf3 {[%clk 0:03:01]}  Nf6 {[%clk 0:02:59]} 4. g3 {[%clk 0:03:01]}  Bb4+ {[%clk 0:03:00]} 5. Bd2 {[%clk 0:03:00]}  a5 {[%clk 0:03:00]} 6. Bg2 {[%clk 0:02:59]}  O-O {[%clk 0:03:01]} 7. O-O {[%clk 0:02:59]}  dxc4 {[%clk 0:03:01]} 8. a4 {[%clk 0:02:47]}  Nc6 {[%clk 0:02:56]} 9. e3 {[%clk 0:02:23]}  e5 {[%clk 0:02:57]} 10. dxe5 {[%clk 0:02:21]}  Ng4 {[%clk 0:02:57]} 11. Qe1 {[%clk 0:01:17]}  Bf5 {[%clk 0:02:44]} 12. h3 {[%clk 0:01:09]}  Ngxe5 {[%clk 0:02:44]} 13. Nxe5 {[%clk 0:01:10]}  Nxe5 {[%clk 0:02:44]} 14. Bxb4 {[%clk 0:01:09]}  Nd3 {[%clk 0:02:38]} 15. Qc3 {[%clk 0:01:08]}  Nxb4 {[%clk 0:02:35]} 16. Na3 {[%clk 0:01:03]}  c6 {[%clk 0:02:08]} 17. Nxc4 {[%clk 0:01:01]}  Qe7 {[%clk 0:01:56]} 18. e4 {[%clk 0:00:52]}  Be6 {[%clk 0:01:53]} 19. Rfd1 {[%clk 0:00:43]}  Bxc4 {[%clk 0:01:42]} 20. Qxc4 {[%clk 0:00:41]}  Rfd8 {[%clk 0:01:43]} 21. b3 {[%clk 0:00:36]}  h6 {[%clk 0:01:42]} 22. Bf3 {[%clk 0:00:30]}  Qf6 {[%clk 0:01:40]} 23. Kg2 {[%clk 0:00:29]}  Nd3 {[%clk 0:01:39]} 24. Rab1 {[%clk 0:00:21]}  Rd4 {[%clk 0:01:38]} 25. Qc2 {[%clk 0:00:16]}  Rad8 {[%clk 0:01:39]} 26. Be2 {[%clk 0:00:09]}  Qxf2+ {[%clk 0:01:38]} 0-1


[Site "https://www.chess.com"]

[Event "Titled Tuesday Blitz August 09 Early 2022"]
[White "Navarrete Mendez, Gonzalo Alberto"]
[Black "Lakshmi C"]
[WhiteFideId "5106850"]
[BlackFideId "25035347"]
[WhiteElo "2261"]
[BlackElo "1775"]
[Result "1-0"]
[Round "01"]
[TimeControl "180+1"]
[Date "2022.08.09"]
[WhiteClock "0:00:26"]
[BlackClock "0:00:01"]

1. e4 {[%clk 0:02:58]}  c5 {[%clk 0:02:55]} 2. Nf3 {[%clk 0:02:58]}  Nc6 {[%clk 0:02:53]} 3. Nc3 {[%clk 0:02:58]}  e5 {[%clk 0:02:47]} 4. Bc4 {[%clk 0:02:57]}  Be7 {[%clk 0:02:47]} 5. d3 {[%clk 0:02:57]}  Nf6 {[%clk 0:02:46]} 6. Ng5 {[%clk 0:02:57]}  O-O {[%clk 0:02:47]} 7. h4 {[%clk 0:02:57]}  Na5 {[%clk 0:02:43]} 8. f4 {[%clk 0:02:54]}  Nxc4 {[%clk 0:02:43]} 9. dxc4 {[%clk 0:02:54]}  d6 {[%clk 0:02:41]} 10. f5 {[%clk 0:02:54]}  b6 {[%clk 0:02:20]} 11. Qe2 {[%clk 0:02:34]}  a6 {[%clk 0:02:14]} 12. g4 {[%clk 0:02:24]}  b5 {[%clk 0:01:57]} 13. Nf3 {[%clk 0:02:17]}  Nxg4 {[%clk 0:01:46]} 14. Ng5 {[%clk 0:02:04]}  h5 {[%clk 0:01:42]} 15. Rg1 {[%clk 0:01:55]}  bxc4 {[%clk 0:01:06]} 16. Bd2 {[%clk 0:01:31]}  d5 {[%clk 0:00:24]} 17. Nxd5 {[%clk 0:01:27]}  Bxg5 {[%clk 0:00:22]} 18. hxg5 {[%clk 0:01:24]}  Bxf5 {[%clk 0:00:21]} 19. O-O-O {[%clk 0:01:15]}  Be6 {[%clk 0:00:20]} 20. Be3 {[%clk 0:00:48]}  Qc8 {[%clk 0:00:18]} 21. Ne7+ {[%clk 0:00:47]}  Kh8 {[%clk 0:00:17]} 22. Nxc8 {[%clk 0:00:46]}  Rfxc8 {[%clk 0:00:16]} 23. Rh1 {[%clk 0:00:45]}  g6 {[%clk 0:00:16]} 24. Rdg1 {[%clk 0:00:43]}  Kg7 {[%clk 0:00:16]} 25. Qf3 {[%clk 0:00:40]}  a5 {[%clk 0:00:14]} 26. Bd2 {[%clk 0:00:40]}  a4 {[%clk 0:00:13]} 27. Bc3 {[%clk 0:00:40]}  a3 {[%clk 0:00:10]} 28. Rxg4 {[%clk 0:00:40]}  Bxg4 {[%clk 0:00:10]} 29. Bxe5+ {[%clk 0:00:40]}  Kf8 {[%clk 0:00:11]} 30. Qf6 {[%clk 0:00:39]}  Ra7 {[%clk 0:00:10]} 31. Bd6+ {[%clk 0:00:37]}  Ke8 {[%clk 0:00:10]} 32. bxa3 {[%clk 0:00:33]}  Be6 {[%clk 0:00:09]} 33. Rd1 {[%clk 0:00:27]}  c3 {[%clk 0:00:06]} 34. Qxc3 {[%clk 0:00:26]}  c4 {[%clk 0:00:05]} 35. Be5 {[%clk 0:00:26]}  Rca8 {[%clk 0:00:04]} 36. Bf6 {[%clk 0:00:25]}  Rxa3 {[%clk 0:00:04]} 37. Qxa3 {[%clk 0:00:25]}  Rxa3 {[%clk 0:00:01]} 38. Rd8# {[%clk 0:00:26]} 1-0


[Site "https://www.chess.com"]

[Event "Titled Tuesday Blitz August 09 Early 2022"]
[White "Omelja, Artem"]
[Black "Lebedev, Artem S."]
[WhiteFideId "14119846"]
[BlackFideId "34272747"]
[WhiteElo "2382"]
[BlackElo "1699"]
[Result "1-0"]
[Round "01"]
[TimeControl "180+1"]
[Date "2022.08.09"]
[WhiteClock "0:00:29"]
[BlackClock "0:00:10"]

1. d4 {[%clk 0:02:56]}  d5 {[%clk 0:02:59]} 2. c4 {[%clk 0:02:54]}  e6 {[%clk 0:02:59]} 3. Nc3 {[%clk 0:02:53]}  Nf6 {[%clk 0:02:59]} 4. cxd5 {[%clk 0:02:53]}  Nxd5 {[%clk 0:02:59]} 5. e4 {[%clk 0:02:51]}  Nxc3 {[%clk 0:02:58]} 6. bxc3 {[%clk 0:02:52]}  Be7 {[%clk 0:02:53]} 7. Nf3 {[%clk 0:02:51]}  c5 {[%clk 0:02:47]} 8. Be2 {[%clk 0:02:47]}  O-O {[%clk 0:02:42]} 9. O-O {[%clk 0:02:46]}  cxd4 {[%clk 0:02:33]} 10. cxd4 {[%clk 0:02:44]}  Nc6 {[%clk 0:02:33]} 11. Be3 {[%clk 0:02:33]}  b6 {[%clk 0:02:06]} 12. Qa4 {[%clk 0:02:20]}  Bb7 {[%clk 0:02:03]} 13. Rfd1 {[%clk 0:02:17]}  Rc8 {[%clk 0:01:46]} 14. Ba6 {[%clk 0:01:50]}  Bxa6 {[%clk 0:01:24]} 15. Qxa6 {[%clk 0:01:51]}  Qd7 {[%clk 0:01:24]} 16. Ne5 {[%clk 0:01:16]}  Nxe5 {[%clk 0:01:17]} 17. dxe5 {[%clk 0:01:16]}  Qc7 {[%clk 0:01:18]} 18. Rac1 {[%clk 0:01:15]}  Bc5 {[%clk 0:01:11]} 19. Bxc5 {[%clk 0:01:12]}  bxc5 {[%clk 0:01:12]} 20. Rd6 {[%clk 0:01:13]}  Rfd8 {[%clk 0:01:06]} 21. h3 {[%clk 0:01:09]}  Kf8 {[%clk 0:00:36]} 22. Rb1 {[%clk 0:00:54]}  Rb8 {[%clk 0:00:25]} 23. Rbd1 {[%clk 0:00:54]}  Rdc8 {[%clk 0:00:19]} 24. Rd7 {[%clk 0:00:32]}  Qb6 {[%clk 0:00:19]} 25. Qe2 {[%clk 0:00:30]}  c4 {[%clk 0:00:19]} 26. Qf3 {[%clk 0:00:30]}  f6 {[%clk 0:00:11]} 27. exf6 {[%clk 0:00:30]}  g6 {[%clk 0:00:11]} 28. Qf4 {[%clk 0:00:29]}  c3 {[%clk 0:00:11]} 29. Qh6+ {[%clk 0:00:29]}  Ke8 {[%clk 0:00:10]} 30. Re7# {[%clk 0:00:29]} 1-0


[Site "https://www.chess.com"]

[Event "Titled Tuesday Blitz August 09 Early 2022"]
[White "Ovezdurdyyeva, Jemal"]
[Black "Gubajdullin, Alexei"]
[WhiteFideId "14001888"]
[BlackFideId "4141202"]
[WhiteElo "1946"]
[BlackElo "2214"]
[Result "1-0"]
[Round "01"]
[TimeControl "180+1"]
[Date "2022.08.09"]
[WhiteClock "0:00:45"]
[BlackClock "0:01:23"]

1. e4 {[%clk 0:02:58]}  c6 {[%clk 0:02:56]} 2. d4 {[%clk 0:02:57]}  d5 {[%clk 0:02:56]} 3. Nd2 {[%clk 0:02:58]}  dxe4 {[%clk 0:02:55]} 4. Nxe4 {[%clk 0:02:58]}  Bf5 {[%clk 0:02:55]} 5. Ng3 {[%clk 0:02:58]}  Bg6 {[%clk 0:02:56]} 6. h4 {[%clk 0:02:57]}  h6 {[%clk 0:02:55]} 7. Nf3 {[%clk 0:02:57]}  Nd7 {[%clk 0:02:55]} 8. Bd3 {[%clk 0:02:56]}  Bxd3 {[%clk 0:02:53]} 9. Qxd3 {[%clk 0:02:57]}  Ngf6 {[%clk 0:02:52]} 10. Bf4 {[%clk 0:02:55]}  Qa5+ {[%clk 0:02:51]} 11. Bd2 {[%clk 0:02:49]}  Qc7 {[%clk 0:02:51]} 12. O-O-O {[%clk 0:02:48]}  e6 {[%clk 0:02:50]} 13. h5 {[%clk 0:02:38]}  O-O-O {[%clk 0:02:49]} 14. Ne2 {[%clk 0:02:37]}  c5 {[%clk 0:02:48]} 15. Bf4 {[%clk 0:02:33]}  Qc6 {[%clk 0:02:47]} 16. dxc5 {[%clk 0:02:32]}  Bxc5 {[%clk 0:02:45]} 17. Ned4 {[%clk 0:02:22]}  Qe4 {[%clk 0:02:36]} 18. Qxe4 {[%clk 0:02:01]}  Nxe4 {[%clk 0:02:35]} 19. Be3 {[%clk 0:01:50]}  Ndf6 {[%clk 0:02:30]} 20. Ne5 {[%clk 0:01:48]}  Rhf8 {[%clk 0:02:05]} 21. c3 {[%clk 0:01:44]}  Nd5 {[%clk 0:02:01]} 22. Rhf1 {[%clk 0:01:30]}  Ng3 {[%clk 0:01:38]} 23. Rfe1 {[%clk 0:01:08]}  Nxe3 {[%clk 0:01:36]} 24. Rxe3 {[%clk 0:01:01]}  Nxh5 {[%clk 0:01:33]} 25. Rf3 {[%clk 0:01:00]}  Nf6 {[%clk 0:01:32]} 26. b4 {[%clk 0:00:53]}  Bd6 {[%clk 0:01:31]} 27. Nc4 {[%clk 0:00:51]}  Bb8 {[%clk 0:01:26]} 28. Nb5 {[%clk 0:00:49]}  Rxd1+ {[%clk 0:01:24]} 29. Kxd1 {[%clk 0:00:47]}  Rd8+ {[%clk 0:01:24]} 30. Kc2 {[%clk 0:00:47]}  a6 {[%clk 0:01:23]} 31. Nb6# {[%clk 0:00:45]} 1-0


[Site "https://www.chess.com"]

[Event "Titled Tuesday Blitz August 09 Early 2022"]
[White "Paravyan, David"]
[Black "Aaditya Dhingra"]
[WhiteFideId "4194985"]
[BlackFideId "25678191"]
[WhiteElo "2569"]
[BlackElo "1849"]
[Result "0-1"]
[Round "01"]
[TimeControl "180+1"]
[Date "2022.08.09"]
[WhiteClock "0:00:01"]
[BlackClock "0:00:07"]

1. e4 {[%clk 0:02:59]}  c5 {[%clk 0:02:59]} 2. Nf3 {[%clk 0:02:57]}  Nc6 {[%clk 0:02:59]} 3. d4 {[%clk 0:02:52]}  cxd4 {[%clk 0:02:59]} 4. Nxd4 {[%clk 0:02:53]}  Nf6 {[%clk 0:02:59]} 5. Nc3 {[%clk 0:02:53]}  d6 {[%clk 0:03:00]} 6. Bg5 {[%clk 0:02:53]}  e6 {[%clk 0:03:00]} 7. Qd2 {[%clk 0:02:53]}  a6 {[%clk 0:02:59]} 8. Nxc6 {[%clk 0:02:53]}  bxc6 {[%clk 0:02:58]} 9. O-O-O {[%clk 0:02:54]}  Qa5 {[%clk 0:02:50]} 10. Bc4 {[%clk 0:02:49]}  Rb8 {[%clk 0:02:44]} 11. Rhe1 {[%clk 0:02:46]}  Be7 {[%clk 0:02:35]} 12. Bb3 {[%clk 0:02:41]}  O-O {[%clk 0:02:28]} 13. Bxf6 {[%clk 0:02:37]}  Bxf6 {[%clk 0:02:28]} 14. Qxd6 {[%clk 0:02:26]}  Bxc3 {[%clk 0:01:33]} 15. bxc3 {[%clk 0:02:22]}  Bb7 {[%clk 0:01:31]} 16. Re3 {[%clk 0:01:33]}  c5 {[%clk 0:01:21]} 17. Qe5 {[%clk 0:01:16]}  Qa3+ {[%clk 0:01:16]} 18. Kd2 {[%clk 0:01:01]}  a5 {[%clk 0:00:52]} 19. Rg3 {[%clk 0:00:50]}  g6 {[%clk 0:00:52]} 20. Ke1 {[%clk 0:00:30]}  Ba6 {[%clk 0:00:45]} 21. h4 {[%clk 0:00:18]}  c4 {[%clk 0:00:37]} 22. h5 {[%clk 0:00:18]}  cxb3 {[%clk 0:00:34]} 23. h6 {[%clk 0:00:18]}  f6 {[%clk 0:00:34]} 24. Qxe6+ {[%clk 0:00:18]}  Kh8 {[%clk 0:00:34]} 25. axb3 {[%clk 0:00:14]}  Bb7 {[%clk 0:00:19]} 26. Qd7 {[%clk 0:00:14]}  Rg8 {[%clk 0:00:17]} 27. Qf7 {[%clk 0:00:13]}  Qf8 {[%clk 0:00:16]} 28. Rd7 {[%clk 0:00:14]}  Qxf7 {[%clk 0:00:16]} 29. Rxf7 {[%clk 0:00:14]}  Bxe4 {[%clk 0:00:16]} 30. Re3 {[%clk 0:00:14]}  Bxc2 {[%clk 0:00:15]} 31. Kd2 {[%clk 0:00:14]}  Bxb3 {[%clk 0:00:14]} 32. Ra7 {[%clk 0:00:14]}  Rgd8+ {[%clk 0:00:13]} 33. Ke1 {[%clk 0:00:01]}  a4 {[%clk 0:00:11]} 34. Kf1 {[%clk 0:00:01]}  Re8 {[%clk 0:00:08]} 35. Rf3 {[%clk 0:00:02]}  Ra8 {[%clk 0:00:07]} 36. Rc7 {[%clk 0:00:01]}  a3 {[%clk 0:00:07]} 0-1


[Site "https://www.chess.com"]

[Event "Titled Tuesday Blitz August 09 Early 2022"]
[White "Pein, Jonathan"]
[Black "Livaic, Leon"]
[WhiteFideId "417092"]
[BlackFideId "14531534"]
[WhiteElo "2140"]
[BlackElo "2540"]
[Result "0-1"]
[Round "01"]
[TimeControl "180+1"]
[Date "2022.08.09"]
[WhiteClock "0:00:01"]
[BlackClock "0:00:25"]

1. Nf3 {[%clk 0:02:58]}  Nf6 {[%clk 0:02:58]} 2. c4 {[%clk 0:02:58]}  g6 {[%clk 0:02:58]} 3. d4 {[%clk 0:02:56]}  Bg7 {[%clk 0:02:59]} 4. Nc3 {[%clk 0:02:56]}  O-O {[%clk 0:02:59]} 5. e3 {[%clk 0:02:55]}  d6 {[%clk 0:02:59]} 6. Be2 {[%clk 0:02:56]}  Nc6 {[%clk 0:02:56]} 7. O-O {[%clk 0:02:36]}  e5 {[%clk 0:02:56]} 8. Rb1 {[%clk 0:02:34]}  Bf5 {[%clk 0:02:48]} 9. Ra1 {[%clk 0:02:29]}  exd4 {[%clk 0:02:48]} 10. Nxd4 {[%clk 0:02:28]}  Nxd4 {[%clk 0:02:48]} 11. exd4 {[%clk 0:02:29]}  Re8 {[%clk 0:02:47]} 12. Bf3 {[%clk 0:02:24]}  c6 {[%clk 0:02:44]} 13. Bg5 {[%clk 0:02:24]}  Qb6 {[%clk 0:02:34]} 14. Qd2 {[%clk 0:02:13]}  Ne4 {[%clk 0:02:23]} 15. Bxe4 {[%clk 0:02:07]}  Bxe4 {[%clk 0:02:22]} 16. Be3 {[%clk 0:02:08]}  Qa6 {[%clk 0:02:10]} 17. Nxe4 {[%clk 0:02:03]}  Rxe4 {[%clk 0:02:09]} 18. b3 {[%clk 0:02:03]}  Rae8 {[%clk 0:02:08]} 19. Rad1 {[%clk 0:02:02]}  h5 {[%clk 0:01:58]} 20. h3 {[%clk 0:01:51]}  Qa3 {[%clk 0:01:46]} 21. Rfe1 {[%clk 0:01:45]}  a5 {[%clk 0:01:40]} 22. Bg5 {[%clk 0:01:25]}  a4 {[%clk 0:01:22]} 23. Rxe4 {[%clk 0:01:15]}  Rxe4 {[%clk 0:01:23]} 24. Qc2 {[%clk 0:01:15]}  Rxd4 {[%clk 0:01:06]} 25. Rxd4 {[%clk 0:00:38]}  Bxd4 {[%clk 0:01:05]} 26. Qe4 {[%clk 0:00:39]}  Qb2 {[%clk 0:00:47]} 27. Bh4 {[%clk 0:00:09]}  Be5 {[%clk 0:00:39]} 28. g4 {[%clk 0:00:03]}  hxg4 {[%clk 0:00:37]} 29. hxg4 {[%clk 0:00:03]}  axb3 {[%clk 0:00:31]} 30. axb3 {[%clk 0:00:03]}  Qxb3 {[%clk 0:00:31]} 31. c5 {[%clk 0:00:03]}  Qe6 {[%clk 0:00:24]} 32. cxd6 {[%clk 0:00:01]}  Bxd6 {[%clk 0:00:25]} 0-1


[Site "https://www.chess.com"]